fUSD/lending_fUSD_20250923
["ID","MTS","AMOUNT","RATE_DAILY","PERIOD"]
[387131028,1758588662015,-400.0,0.00020545,2]
[387131029,1758588662025,-400.0,0.00020545,2]
[387131030,1758588662038,-400.0,0.00020545,2]
[387131031,1758588662049,-400.0,0.00020545,2]
[387131032,1758588662060,-400.0,0.00020545,2]
[387131033,1758588662071,-400.0,0.00020545,2]
[387131034,1758588662085,-400.0,0.00020545,2]
[387131035,1758588662097,-400.0,0.00020545,2]
[387131036,1758588662106,-729.73,0.00020545,2]
[387131037,1758588662115,-400.0,0.00020545,2]
[387131038,1758588662127,-400.0,0.00020545,2]
[387131039,1758588662136,-400.0,0.00020545,2]
[387131040,1758588662146,-400.0,0.00020545,2]
[387131041,1758588662157,-400.0,0.00020545,2]
[387131042,1758588662166,-1262.42,0.00020545,2]
[387131043,1758588662175,-400.0,0.00020545,2]
[387131044,1758588662185,-400.0,0.00020545,2]
[387131045,1758588662194,-400.0,0.00020545,2]
[387131046,1758588662204,-400.0,0.00020545,2]
[387131047,1758588662213,-400.0,0.00020545,2]
[387131048,1758588662222,-400.0,0.00020545,2]
[387131049,1758588662231,-400.0,0.00020545,2]
[387131050,1758588662240,-400.0,0.00020545,2]
[387131051,1758588662251,-402.51,0.00020545,2]
[387131052,1758588662260,-400.0,0.00020545,2]
[387131053,1758588662269,-400.0,0.00020545,2]
[387131054,1758588662279,-400.0,0.00020545,2]
[387131055,1758588662288,-400.0,0.00020545,2]
[387131056,1758588662297,-400.0,0.00020545,2]
[387131057,1758588662307,-796.01,0.00020545,2]
[387131058,1758588662316,-400.0,0.00020545,2]
[387131059,1758588662325,-400.0,0.00020545,2]
[387131060,1758588662334,-377.61,0.00020545,2]
[387131061,1758588662343,-400.0,0.00020545,2]
[387131062,1758588662352,-531.15,0.00020545,2]
[387131063,1758588662361,-431.35,0.00020545,2]
[387131064,1758588662370,-476.08334935,0.00020545,2]
[387131065,1758588662878,-1859.72665065,0.00020545,2]
[387131066,1758588662888,-400.0,0.00020545,2]
[387131067,1758588662898,-1029.46,0.00020545,2]
[387131068,1758588662907,-400.0,0.00020545,2]
[387131069,1758588662917,-400.0,0.00020545,2]
[387131070,1758588662926,-465.65,0.00020545,2]
[387131071,1758588662935,-400.0,0.00020545,2]
[387131072,1758588662944,-400.0,0.00020545,2]
[387131073,1758588662953,-400.0,0.00020545,2]
[387131074,1758588662962,-400.0,0.00020545,2]
[387131075,1758588662971,-400.0,0.00020545,2]
[387131076,1758588662980,-400.0,0.00020545,2]
[387131077,1758588662990,-400.0,0.00020545,2]
[387131078,1758588662999,-400.0,0.00020545,2]
[387131079,1758588663009,-400.0,0.00020545,2]
[387131080,1758588663019,-400.0,0.00020545,2]
[387131081,1758588663028,-1832.67,0.00020545,2]
[387131082,1758588663038,-390.61,0.00020545,2]
[387131083,1758588663048,-400.0,0.00020545,2]
[387131084,1758588663057,-400.0,0.00020545,2]
[387131085,1758588663067,-1616.25,0.00020545,2]
[387131086,1758588663077,-400.0,0.00020545,2]
[387131087,1758588663090,-400.0,0.00020545,2]
[387131088,1758588663099,-400.0,0.00020545,2]
[387131089,1758588663109,-400.0,0.00020545,2]
[387131090,1758588663118,-400.0,0.00020545,2]
[387131091,1758588663130,-400.0,0.00020545,2]
[387131092,1758588663140,-400.0,0.00020545,2]
[387131093,1758588663149,-836.01,0.00020545,2]
[387131094,1758588663161,-400.0,0.00020545,2]
[387131095,1758588663172,-400.0,0.00020545,2]
[387131096,1758588663183,-400.0,0.00020545,2]
[387131097,1758588663192,-400.0,0.00020545,2]
[387131098,1758588663202,-400.0,0.00020545,2]
[387131099,1758588663212,-400.0,0.00020545,2]
[387131100,1758588663222,-400.0,0.00020545,2]
[387131101,1758588663232,-400.0,0.00020545,2]
[387131102,1758588663242,-1061.09,0.00020545,2]
[387131103,1758588663252,-522.0,0.00020545,2]
[387131104,1758588663261,-4.66600343,0.00020545,2]
[387131105,1758588663370,-395.33399657,0.00020545,2]
[387131106,1758588663380,-182.5856678,0.00020545,2]
[387131107,1758588663393,-217.4143322,0.00020545,2]
[387131108,1758588663401,-400.0,0.00020545,2]
[387131109,1758588663411,-400.0,0.00020545,2]
[387131110,1758588663421,-400.0,0.00020545,2]
[387131111,1758588663431,-400.0,0.00020545,2]
[387131112,1758588663440,-241.87307312,0.00020545,2]
[387131113,1758588663451,-158.12692688,0.00020545,2]
[387131114,1758588663461,-400.0,0.00020545,2]
[387131115,1758588663470,-400.0,0.00020545,2]
[387131116,1758588663479,-500.0,0.00020545,2]
[387131117,1758588663489,-400.0,0.00020545,2]
[387131118,1758588663498,-400.0,0.00020545,2]
[387131119,1758588663508,-400.0,0.00020545,2]
[387131120,1758588663518,-400.0,0.00020545,2]
[387131121,1758588663527,-400.0,0.00020545,2]
[387131122,1758588663536,-3384.62,0.00020545,2]
[387131123,1758588663546,-400.0,0.00020545,2]
[387131124,1758588663556,-400.0,0.00020545,2]
[387131125,1758588663567,-400.0,0.00020545,2]
[387131126,1758588663576,-400.0,0.00020545,2]
[387131127,1758588663586,-400.0,0.00020545,2]
[387131128,1758588663595,-400.0,0.00020545,2]
[387131129,1758588663605,-400.0,0.00020545,2]
[387131130,1758588663615,-2060.76,0.00020545,2]
[387131131,1758588663624,-400.0,0.00020545,2]
[387131132,1758588663633,-1000.0,0.00020545,2]
[387131133,1758588663643,-400.0,0.00020545,2]
[387131134,1758588663652,-530.11,0.00020545,2]
[387131135,1758588663664,-530.0,0.00020545,2]
[387131136,1758588663674,-400.0,0.00020545,2]
[387131137,1758588663684,-922.13,0.00020545,2]
[387131138,1758588663693,-400.0,0.00020545,2]
[387131139,1758588663703,-400.0,0.00020545,2]
[387131140,1758588663712,-400.0,0.00020545,2]
[387131141,1758588663721,-754.65,0.00020545,2]
[387131142,1758588663731,-400.0,0.00020545,2]
[387131143,1758588663741,-400.0,0.00020545,2]
[387131144,1758588663751,-400.0,0.00020545,2]
[387131145,1758588663760,-400.0,0.00020545,2]
[387131146,1758588663772,-400.0,0.00020545,2]
[387131147,1758588663782,-400.0,0.00020545,2]
[387131148,1758588663795,-508.94,0.00020545,2]
[387131149,1758588663805,-400.0,0.00020545,2]
[387131150,1758588663814,-1169.65,0.00020545,2]
[387131151,1758588663825,-400.0,0.00020546,2]
[387131152,1758588663835,-400.0,0.00020546,2]
[387131153,1758588663845,-400.0,0.00020546,2]
[387131154,1758588663854,-400.0,0.00020546,2]
[387131155,1758588663864,-400.0,0.00020546,2]
[387131156,1758588663874,-400.0,0.00020546,2]
[387131157,1758588663884,-400.0,0.00020546,2]
[387131158,1758588663895,-400.0,0.00020546,2]
[387131159,1758588663904,-400.0,0.00020546,2]
[387131160,1758588663914,-400.0,0.00020546,2]
[387131161,1758588663923,-400.0,0.00020546,2]
[387131162,1758588663933,-400.0,0.00020546,2]
[387131163,1758588663943,-400.0,0.00020546,2]
[387131164,1758588663952,-400.0,0.00020546,2]
[387131165,1758588663962,-400.0,0.00020546,2]
[387131166,1758588663972,-400.0,0.00020546,2]
[387131167,1758588663981,-400.0,0.00020546,2]
[387131168,1758588663990,-400.0,0.00020546,2]
[387131169,1758588663999,-400.0,0.00020546,2]
[387131170,1758588664009,-400.0,0.00020546,2]
[387131171,1758588664018,-400.0,0.00020546,2]
[387131172,1758588664027,-400.0,0.00020546,2]
[387131173,1758588664036,-400.0,0.00020546,2]
[387131174,1758588664045,-400.0,0.00020546,2]
[387131175,1758588664055,-400.0,0.00020546,2]
[387131176,1758588664064,-400.0,0.00020546,2]
[387131177,1758588664073,-400.0,0.00020546,2]
[387131178,1758588664084,-400.0,0.00020546,2]
[387131179,1758588664094,-400.0,0.00020546,2]
[387131180,1758588664103,-400.0,0.00020546,2]
[387131181,1758588664113,-400.0,0.00020546,2]
[387131182,1758588664123,-400.0,0.00020546,2]
[387131183,1758588664133,-400.0,0.00020546,2]
[387131184,1758588664142,-400.0,0.00020546,2]
[387131185,1758588664154,-400.0,0.00020546,2]
[387131186,1758588664165,-400.0,0.00020546,2]
[387131187,1758588664175,-674.13,0.00020546,2]
[387131188,1758588664185,-400.0,0.00020546,2]
[387131189,1758588664195,-401.96118343,0.00020546,2]
[387131190,1758588664204,-490.65,0.00020546,2]
[387131191,1758588664213,-400.0,0.00020546,2]
[387131192,1758588664223,-500.0,0.00020546,2]
[387131193,1758588664233,-400.0,0.00020546,2]
[387131194,1758588664244,-400.0,0.00020546,2]
[387131195,1758588664254,-400.0,0.00020546,2]
[387131196,1758588664264,-400.0,0.00020546,2]
[387131197,1758588664274,-410.63,0.00020546,2]
[387131198,1758588664283,-400.0,0.00020546,2]
[387131199,1758588664294,-400.0,0.00020546,2]
[387131200,1758588664312,-400.0,0.00020546,2]
[387131201,1758588664321,-750.91,0.00020546,2]
[387131202,1758588664331,-475.01085779,0.00020546,2]
[387131203,1758588664340,-400.0,0.00020546,2]
[387131204,1758588664349,-400.0,0.00020546,2]
[387131205,1758588664359,-554.46,0.00020546,2]
[387131206,1758588664368,-400.0,0.00020546,2]
[387131207,1758588664377,-544.47,0.00020546,2]
[387131208,1758588664387,-400.0,0.00020546,2]
[387131209,1758588664396,-400.0,0.00020546,2]
[387131210,1758588664405,-859.26,0.00020546,2]
[387131211,1758588664414,-400.0,0.00020546,2]
[387131212,1758588664423,-400.0,0.00020546,2]
[387131213,1758588664432,-400.0,0.00020546,2]
[387131214,1758588664442,-400.0,0.00020546,2]
[387131215,1758588664451,-400.0,0.00020546,2]
[387131216,1758588664460,-660.35,0.00020546,2]
[387131217,1758588664470,-410.37,0.00020546,2]
[387131218,1758588664480,-400.0,0.00020546,2]
[387131219,1758588664490,-400.0,0.00020546,2]
[387131220,1758588664500,-400.0,0.00020546,2]
[387131221,1758588664509,-1016.77,0.00020546,2]
[387131222,1758588664519,-400.0,0.00020546,2]
[387131223,1758588664528,-400.0,0.00020546,2]
[387131224,1758588664538,-403.38474892,0.00020546,2]
[387131225,1758588664555,-400.0,0.00020546,2]
[387131226,1758588664566,-126.09660297,0.00020546,2]
[387131227,1758588664611,-358.03339703,0.00020546,2]
[387131228,1758588664621,-476.88960901,0.00020546,2]
[387131229,1758588664633,-205.62039099,0.00020546,2]
[387131230,1758588664643,-400.0,0.00020546,2]
[387131231,1758588664652,-157.67606165,0.00020546,2]
[387131232,1758588664680,-245.38590142,0.00020546,2]
[387131233,1758588664689,-470.87979693,0.00020546,2]
[387131234,1758588664700,-1529.12020307,0.00020546,2]
[387131235,1758588664712,-400.0,0.00020546,2]
[387131236,1758588664723,-400.0,0.00020546,2]
[387131237,1758588664732,-588.84,0.00020546,2]
[387131238,1758588664741,-527.41,0.00020546,2]
[387131239,1758588664750,-252.68637115,0.00020546,2]
[387131240,1758588664762,-164.70362885,0.00020546,2]
[387131241,1758588664771,-400.0,0.00020546,2]
[387131242,1758588664781,-400.0,0.00020546,2]
[387131243,1758588664790,-42.01070237,0.00020546,2]
[387131244,1758588664802,-357.98929763,0.00020546,2]
[387131245,1758588664811,-400.0,0.00020546,2]
[387131246,1758588664820,-400.0,0.00020546,2]
[387131247,1758588664830,-769.14,0.00020546,2]
[387131248,1758588664840,-422.34,0.00020546,2]
[387131249,1758588664849,-260.09058077,0.00020546,2]
[387131250,1758588664861,-139.90941923,0.00020546,2]
[387131251,1758588664870,-400.0,0.00020546,2]
[387131252,1758588664880,-1.66647054,0.00020546,2]
[387131253,1758588664891,-398.33352946,0.00020546,2]
[387131254,1758588664900,-400.0,0.00020546,2]
[387131255,1758588664909,-450.01,0.00020546,2]
[387131256,1758588664919,-400.0,0.00020546,2]
[387131257,1758588664928,-174.6,0.00020546,2]
[387131258,1758588664937,-400.0,0.00020546,2]
[387131259,1758588664947,-400.0,0.00020546,2]
[387131260,1758588664957,-400.0,0.00020546,2]
[387131261,1758588664966,-371.12342831,0.00020546,2]
[387131262,1758588666661,-503.47688349,0.00019028,2]
[387131263,1758588666671,-858.97,0.00019987,2]
[387131264,1758588666681,-1595.25,0.00019987,2]
[387131265,1758588666691,-858.97,0.00019988,2]
[387131266,1758588666701,-858.97,0.00019988,2]
[387131267,1758588666711,-400.0,0.00019996,2]
[387131268,1758588666721,-400.0,0.00019996,2]
[387131269,1758588666731,-400.0,0.00019996,2]
[387131270,1758588666741,-1903.352168,0.00019997,2]
[387131271,1758588666750,-400.0,0.00019997,2]
[387131272,1758588666761,-400.0,0.00019998,2]
[387131273,1758588666770,-1279.8,0.00019998,2]
[387131274,1758588666780,-400.0,0.00019998,2]
[387131275,1758588666790,-400.0,0.00019998,2]
[387131276,1758588666800,-400.0,0.00019998,2]
[387131277,1758588666811,-420.97,0.0002027,2]
[387131278,1758588666820,-400.0,0.0002027,2]
[387131279,1758588666830,-400.0,0.0002027,2]
[387131280,1758588666840,-1903.352168,0.00020271,2]
[387131281,1758588666850,-400.0,0.00020271,2]
[387131282,1758588666860,-405.0073412,0.00020272,2]
[387131283,1758588666870,-1279.8,0.00020272,2]
[387131284,1758588666880,-400.0,0.00020272,2]
[387131285,1758588666890,-400.0,0.00020272,2]
[387131286,1758588666901,-400.0,0.00020544,2]
[387131287,1758588666911,-400.0,0.00020545,2]
[387131288,1758588666921,-675.99490931,0.00020545,2]
[387131289,1758588667011,-400.0,0.00020272,2]
[387131290,1758588667020,-1227.35725869,0.00020545,2]
[387131291,1758588667030,-265.92,0.00020545,2]
[387131292,1758588667043,-123.92657169,0.00020546,2]
[387131293,1758588667053,-400.0,0.00020546,2]
[387131294,1758588667063,-593.36,0.00020546,2]
[387131295,1758588667072,-445.15,0.00020546,2]
[387131296,1758588667083,-203.76,0.00020546,2]
[387131297,1758588667094,-400.0,0.00020546,2]
[387131298,1758588667104,-400.0,0.00020546,2]
[387131299,1758588667114,-400.0,0.00020546,2]
[387131300,1758588667124,-769.03,0.00020546,2]
[387131301,1758588667135,-537.23,0.00020546,2]
[387131302,1758588667145,-400.0,0.00020546,2]
[387131303,1758588667155,-400.0,0.00020546,2]
[387131304,1758588667166,-400.0,0.00020546,2]
[387131305,1758588667176,-400.0,0.00020546,2]
[387131306,1758588667186,-400.0,0.00020546,2]
[387131307,1758588667195,-476.55140257,0.00020546,2]
[387131308,1758588667205,-400.0,0.00020546,2]
[387131309,1758588667214,-400.0,0.00020546,2]
[387131310,1758588667224,-400.0,0.00020546,2]
[387131311,1758588667234,-400.0,0.00020546,2]
[387131312,1758588667244,-400.0,0.00020546,2]
[387131313,1758588667254,-568.13371797,0.00020546,2]
[387131314,1758588667266,-872.67628203,0.00020546,2]
[387131315,1758588667276,-400.0,0.00020546,2]
[387131316,1758588667286,-2249.616654,0.00020546,2]
[387131317,1758588667296,-501.42,0.00020546,2]
[387131318,1758588667526,-400.0,0.00020546,2]
[387131319,1758588667536,-136.56425297,0.00020546,2]
[387131320,1758588667548,-263.43574703,0.00020546,2]
[387131321,1758588667557,-153.609692,0.00020546,2]
[387131322,1758588667568,-246.390308,0.00020546,2]
[387131323,1758588667577,-400.0,0.00020546,2]
[387131324,1758588667587,-12.76302186,0.00020546,2]
[387131325,1758588667598,-264.938,0.00020546,2]
[387131326,1758588667630,-223.30897814,0.00020546,2]
[387131327,1758588667639,-400.0,0.00020546,2]
[387131328,1758588667649,-493.6,0.00020546,2]
[387131329,1758588667659,-400.0,0.00020546,2]
[387131330,1758588667670,-400.0,0.00020546,2]
[387131331,1758588667681,-969.65,0.00020546,2]
[387131332,1758588667695,-433.42,0.00020546,2]
[387131333,1758588667704,-400.0,0.00020546,2]
[387131334,1758588667714,-500.0,0.00020546,2]
[387131335,1758588667723,-577.66,0.00020546,2]
[387131336,1758588667732,-431.84562401,0.00020546,2]
[387131337,1758588667744,-68.15437599,0.00020546,2]
[387131338,1758588667754,-151.0,0.00020546,2]
[387131339,1758588667764,-400.0,0.00020546,2]
[387131340,1758588667773,-120.78258281,0.00020546,2]
[387131341,1758588667802,-30.21741719,0.00020546,2]
[387131342,1758588667812,-458.68,0.00020546,2]
[387131343,1758588667822,-400.0,0.00020546,2]
[387131344,1758588667831,-400.0,0.00020546,2]
[387131345,1758588667841,-151.0,0.00020546,2]
[387131346,1758588667850,-803.42,0.00020546,2]
[387131347,1758588667859,-400.0,0.00020546,2]
[387131348,1758588667868,-400.0,0.00020546,2]
[387131349,1758588667877,-151.0,0.00020546,2]
[387131350,1758588667887,-151.0,0.00020546,2]
[387131351,1758588667896,-151.0,0.00020546,2]
[387131352,1758588667907,-651.06,0.00020546,2]
[387131353,1758588667917,-151.0,0.00020546,2]
[387131354,1758588667926,-151.0,0.00020546,2]
[387131355,1758588667935,-400.0,0.00020546,2]
[387131356,1758588667945,-400.0,0.00020546,2]
[387131357,1758588667955,-151.0,0.00020546,2]
[387131358,1758588667964,-414.87,0.00020546,2]
[387131359,1758588667974,-400.0,0.00020546,2]
[387131360,1758588667984,-211.78460116,0.00020546,2]
[387131361,1758588667996,-390.29539884,0.00020546,2]
[387131362,1758588668007,-400.0,0.00020546,2]
[387131363,1758588668017,-151.0,0.00020546,2]
[387131364,1758588668027,-400.0,0.00020546,2]
[387131365,1758588668038,-400.0,0.00020546,2]
[387131366,1758588668048,-697.68,0.00020546,2]
[387131367,1758588668059,-400.0,0.00020546,2]
[387131368,1758588668070,-550.74300499,0.00020546,2]
[387131369,1758588668084,-618.72699501,0.00020546,2]
[387131370,1758588668096,-423.28,0.00020546,2]
[387131371,1758588668107,-400.0,0.00020546,2]
[387131372,1758588668119,-400.0,0.00020546,2]
[387131373,1758588668129,-151.0,0.00020546,2]
[387131374,1758588668139,-400.0,0.00020546,2]
[387131375,1758588668151,-440.26,0.00020546,2]
[387131376,1758588668167,-514.36,0.00020546,2]
[387131377,1758588668178,-593.88,0.00020546,2]
[387131378,1758588668188,-400.0,0.00020546,2]
[387131379,1758588668198,-1060.97,0.00020546,2]
[387131380,1758588668207,-400.0,0.00020546,2]
[387131381,1758588668217,-743.55,0.00020546,2]
[387131382,1758588668227,-400.0,0.00020546,2]
[387131383,1758588668236,-400.0,0.00020546,2]
[387131384,1758588668246,-400.0,0.00020546,2]
[387131385,1758588668255,-500.0,0.00020546,2]
[387131386,1758588668264,-509.77082239,0.00020546,2]
[387131387,1758588668274,-620.51,0.00020546,2]
[387131388,1758588668283,-400.0,0.00020546,2]
[387131389,1758588668293,-400.0,0.00020546,2]
[387131390,1758588668302,-400.0,0.00020546,2]
[387131391,1758588668312,-695.32,0.00020546,2]
[387131392,1758588668321,-6.37218259,0.00020546,2]
[387131393,1758588668408,-402.3191033,0.00020546,2]
[387131394,1758588668418,-447.81,0.00020546,2]
[387131395,1758588668427,-400.0,0.00020546,2]
[387131396,1758588668437,-400.0,0.00020546,2]
[387131397,1758588668448,-909.99,0.00020546,2]
[387131398,1758588668461,-400.0,0.00020546,2]
[387131399,1758588668471,-475.18464213,0.00020546,2]
[387131400,1758588668480,-400.0,0.00020546,2]
[387131401,1758588668489,-400.0,0.00020546,2]
[387131402,1758588668498,-609.54,0.00020546,2]
[387131403,1758588668508,-400.0,0.00020546,2]
[387131404,1758588668518,-503.16,0.00020546,2]
[387131405,1758588668527,-304.00628618,0.00020546,2]
[387131406,1758588668537,-652.42,0.00020546,2]
[387131407,1758588668546,-400.0,0.00020546,2]
[387131408,1758588668555,-1926.15,0.00020546,2]
[387131409,1758588668565,-400.0,0.00020546,2]
[387131410,1758588668574,-400.0,0.00020546,2]
[387131411,1758588668584,-808.98,0.00020546,2]
[387131412,1758588668593,-997.93,0.00020546,2]
[387131413,1758588668603,-2763.9,0.00020546,2]
[387131414,1758588668612,-822.69,0.00020546,2]
[387131415,1758588668623,-400.0,0.00020546,2]
[387131416,1758588668633,-352.70637824,0.00020546,2]
[387131417,1758588669221,-400.0,0.00019996,2]
[387131418,1758588669230,-400.0,0.00019997,2]
[387131419,1758588669239,-400.0,0.00019997,2]
[387131420,1758588669248,-500.0,0.00019997,2]
[387131421,1758588669257,-400.0,0.00019998,2]
[387131422,1758588669266,-400.0,0.00019998,2]
[387131423,1758588669276,-500.0,0.00019998,2]
[387131424,1758588669286,-400.0,0.00019999,2]
[387131425,1758588669295,-400.0,0.00020271,2]
[387131426,1758588669304,-400.0,0.00020271,2]
[387131427,1758588669313,-500.0,0.00020271,2]
[387131428,1758588669322,-400.0,0.00020272,2]
[387131429,1758588669331,-400.0,0.00020272,2]
[387131430,1758588669340,-71.82277803,0.00020272,2]
[387131431,1758588669351,-428.17722197,0.00020272,2]
[387131432,1758588669360,-400.0,0.00020273,2]
[387131433,1758588669369,-400.0,0.00020545,2]
[387131434,1758588669378,-400.0,0.00020545,2]
[387131435,1758588669389,-500.0,0.00020545,2]
[387131436,1758588669403,-47.29362176,0.00020546,2]
[387131437,1758588669414,-1231.62,0.00020546,2]
[387131438,1758588669423,-435.88,0.00020546,2]
[387131439,1758588669439,-400.0,0.00020546,2]
[387131440,1758588669454,-989.412533,0.00020546,2]
[387131441,1758588669468,-891.887467,0.00020546,2]
[387131442,1758588669483,-400.0,0.00020546,2]
[387131443,1758588669498,-400.0,0.00020546,2]
[387131444,1758588669514,-1082.02,0.00020546,2]
[387131445,1758588669530,-703.54,0.00020546,2]
[387131446,1758588669546,-471.61,0.00020546,2]
[387131447,1758588669561,-179.58240183,0.00020546,2]
[387131448,1758588669579,-519.36759817,0.00020546,2]
[387131449,1758588669594,-422.43,0.00020546,2]
[387131450,1758588669609,-665.52,0.00020546,2]
[387131451,1758588669624,-1517.07,0.00020546,2]
[387131452,1758588669639,-1290.57,0.00020546,2]
[387131453,1758588669652,-17.31079209,0.00020546,2]
[387131454,1758588669670,-582.48920791,0.00020546,2]
[387131455,1758588669685,-864.51,0.00020546,2]
[387131456,1758588669698,-400.0,0.00020546,2]
[387131457,1758588669709,-700.22,0.00020546,2]
[387131458,1758588669721,-578.19,0.00020546,2]
[387131459,1758588669737,-400.0,0.00020546,2]
[387131460,1758588669748,-151.0,0.00020546,2]
[387131461,1758588669759,-400.0,0.00020546,2]
[387131462,1758588669775,-400.0,0.00020546,2]
[387131463,1758588669788,-1270.12,0.00020546,2]
[387131464,1758588669799,-529.42,0.00020546,2]
[387131465,1758588669816,-1179.29,0.00020546,2]
[387131466,1758588669829,-790.42,0.00020546,2]
[387131467,1758588669841,-546.07,0.00020546,2]
[387131468,1758588669854,-796.17,0.00020546,2]
[387131469,1758588669866,-400.0,0.00020546,2]
[387131470,1758588669878,-1797.38,0.00020546,2]
[387131471,1758588669892,-400.0,0.00020546,2]
[387131472,1758588669904,-1067.68,0.00020546,2]
[387131473,1758588669917,-400.0,0.00020546,2]
[387131474,1758588669929,-400.0,0.00020546,2]
[387131475,1758588669941,-400.0,0.00020546,2]
[387131476,1758588669954,-685.94,0.00020546,2]
[387131477,1758588669966,-400.0,0.00020546,2]
[387131478,1758588669980,-95.85704195,0.00020546,2]
[387131479,1758588669998,-304.14295805,0.00020546,2]
[387131480,1758588670013,-400.0,0.00020546,2]
[387131481,1758588670027,-785.97633208,0.00020546,2]
[387131482,1758588670098,-3624.81366792,0.00020546,2]
[387131483,1758588670112,-400.0,0.00020546,2]
[387131484,1758588670126,-400.0,0.00020546,2]
[387131485,1758588670139,-635.32,0.00020546,2]
[387131486,1758588670152,-825.39,0.00020546,2]
[387131487,1758588670165,-400.0,0.00020546,2]
[387131488,1758588670178,-400.0,0.00020546,2]
[387131489,1758588670190,-1159.17,0.00020546,2]
[387131490,1758588670202,-3621.17,0.00020546,2]
[387131491,1758588670214,-536.01,0.00020546,2]
[387131492,1758588670226,-1555.92,0.00020546,2]
[387131493,1758588670239,-685.82,0.00020546,2]
[387131494,1758588670251,-400.0,0.00020546,2]
[387131495,1758588670263,-400.0,0.00020546,2]
[387131496,1758588670276,-1688.59,0.00020546,2]
[387131497,1758588670288,-533.54,0.00020546,2]
[387131498,1758588670300,-3199.7,0.00020546,2]
[387131499,1758588670312,-400.0,0.00020546,2]
[387131500,1758588670324,-5083.46,0.00020546,2]
[387131501,1758588670336,-532.7,0.00020546,2]
[387131502,1758588670349,-726.03,0.00020546,2]
[387131503,1758588670362,-1692.11,0.00020546,2]
[387131504,1758588670376,-633.11,0.00020546,2]
[387131505,1758588670390,-411.61,0.00020546,2]
[387131506,1758588670403,-400.0,0.00020546,2]
[387131507,1758588670416,-400.0,0.00020546,2]
[387131508,1758588670429,-648.3,0.00020546,2]
[387131509,1758588670443,-400.0,0.00020546,2]
[387131510,1758588670457,-857.03,0.00020546,2]
[387131511,1758588670470,-722.01,0.00020546,2]
[387131512,1758588670484,-1108.24,0.00020546,2]
[387131513,1758588670499,-464.86,0.00020546,2]
[387131514,1758588670512,-2367.09,0.00020546,2]
[387131515,1758588670523,-400.0,0.00020546,2]
[387131516,1758588670536,-400.0,0.00020546,2]
[387131517,1758588670548,-400.0,0.00020546,2]
[387131518,1758588670560,-1636.84,0.00020546,2]
[387131519,1758588670572,-400.0,0.00020546,2]
[387131520,1758588670585,-2136.91,0.00020546,2]
[387131521,1758588670604,-555.5,0.00020546,2]
[387131522,1758588670618,-914.0,0.00020546,2]
[387131523,1758588670630,-887.03,0.00020546,2]
[387131524,1758588670643,-400.0,0.00020546,2]
[387131525,1758588670654,-1767.45,0.00020546,2]
[387131526,1758588670667,-1514.68,0.00020546,2]
[387131527,1758588670680,-553.9,0.00020546,2]